bitfinex/quotes_ETHUSD_20220305
["timestamp","ask_amount","ask_price","bid_price","bid_amount"]
[1646441880617,1.10948888,2604.8,2604.5,0.00134345]
[1646441880815,12.6208,2604.6,2604.5,0.00134345]
[1646441881012,13.6208,2604.6,2604.5,0.00134345]
[1646441881213,11.66,2604.4,2604.2,0.00147903]
[1646441881415,11.66,2604.3,2604.1,0.3829]
[1646441881612,12.66,2604.2,2604.1,0.3829]
[1646441881913,15.7029091,2604.2,2604.1,0.3829]
[1646441882113,14.7029091,2604.2,2604.1,0.3829]
[1646441882312,12.6211374,2604.2,2604.1,0.0001]
[1646441882513,11.66,2604.2,2604.1,0.0001]
[1646441883119,12.66,2604.2,2604.1,0.0001]
[1646441883316,11.66,2604.2,2604.1,0.0001]
[1646441884258,1.96114,2604.3,2604.1,0.0001]
[1646441884460,12.62114,2604.3,2604.1,0.0001]
[1646441884659,0.192,2604.4,2604.1,0.0001]
[1646441884660,1.114446,2604.5,2604.1,0.0001]
[1646441884859,0.153626,2604.5,2604.1,0.0001]
[1646441885463,12.70978498,2604.2,2604.1,0.00173037]
[1646441885961,13.67069498,2604.2,2604.1,0.00173037]
[1646441886360,12.62091,2604.2,2604.1,0.0001]
[1646441887913,12.62091,2604.2,2603.3,0.03074593]
[1646441887914,16.16,2604.1,2604.0,3.04e-05]
[1646441888111,20.31354,2604.1,2604.0,3.04e-05]
[1646441888317,11.66,2603.9,2603.6,0.0065226]
[1646441888713,0.90334111,2603.6,2603.2,0.0183154]
[1646441888919,11.66,2603.4,2603.2,0.0183154]
[1646441889119,0.9613486,2603.5,2603.2,0.0183154]
[1646441889120,12.62135,2603.3,2603.2,0.0183154]
[1646441892758,12.57135,2603.3,2603.2,0.0183154]
[1646441894058,12.71878017,2603.3,2603.2,0.0183154]
[1646441894259,13.71878017,2603.3,2603.2,0.0183154]
[1646441895313,0.0182846,2603.2,2602.8,0.0145764]
[1646441895509,0.0182846,2603.2,2602.7,0.00156777]
[1646441895510,11.66,2602.8,2602.7,0.00156777]
[1646441895710,11.71767159,2602.2,2602.0,0.06431743]
[1646441895906,11.71767159,2602.2,2602.0,0.0628384]
[1646441896305,12.60736159,2602.2,2602.0,0.0628384]
[1646441896508,13.56907159,2602.2,2602.0,0.0628384]
[1646441897309,13.56907159,2602.2,2601.4,0.03222053]
[1646441897310,11.66,2602.0,2601.4,0.03222053]
[1646441897508,11.66,2602.0,2601.4,0.0307415]
[1646441897707,11.66,2602.0,2601.7,0.04149492]
[1646441897708,14.54612,2601.9,2601.7,0.04149492]
[1646441897908,13.58407,2601.9,2601.7,0.04149492]
[1646441898110,12.62202,2601.9,2601.7,0.04149492]
[1646441898789,12.62202,2601.9,2601.7,0.04308626]
[1646441898790,12.78328337,2601.8,2601.7,0.04308626]
[1646441899586,12.78328337,2601.8,2601.7,0.04149492]
[1646441900187,13.78328337,2601.8,2601.7,0.04149492]
[1646441900387,13.78328337,2601.8,2601.6,0.01611727]
[1646441900589,13.78328337,2601.8,2601.3,0.0289335]
[1646441900590,11.66,2601.5,2601.3,0.0289335]
[1646441901088,12.53645199,2601.4,2601.3,0.0289335]
[1646441903517,11.66,2601.4,2601.3,0.0289335]
[1646441903716,2.7941,2602.1,2601.3,0.0289335]
[1646441903918,1.0,2602.0,2601.3,0.0289335]
[1646441904416,0.05767159,2602.2,2601.3,0.9905335]
[1646441904716,12.70543523,2602.1,2601.5,1.06612275]
[1646441904914,0.05767159,2602.2,2601.5,1.06612275]
[1646441905214,0.05767159,2602.2,2601.4,0.00147903]
[1646441905814,11.71767159,2602.2,2601.4,0.00147903]
[1646441906254,0.05767159,2602.2,2601.4,0.00147903]
[1646441907058,0.05767159,2602.2,2601.5,0.3832]
[1646441907259,0.05767159,2602.2,2601.7,0.0013829]
[1646441907460,0.05767159,2602.2,2601.9,1.10782954]
[1646441907861,0.05767159,2602.2,2601.6,0.00147903]
[1646441908059,0.05767159,2602.2,2601.4,0.38467903]
[1646441908260,0.05767159,2602.2,2601.7,0.00138286]
[1646441908460,1.01933159,2602.2,2601.7,0.00138286]
[1646441908860,12.67933159,2602.2,2601.7,0.00138286]
[1646441909262,1.01933159,2602.2,2601.7,0.00138286]
[1646441909462,1.01933159,2602.2,2601.4,0.00147903]
[1646441909664,12.67933159,2602.2,2601.7,0.00138286]
[1646441909863,0.92694232,2601.9,2601.7,0.00138286]
[1646441910117,12.62181,2601.8,2601.7,0.00138286]
[1646441910515,12.62181,2601.8,2601.3,0.0289335]
[1646441910914,12.62181,2601.8,2601.7,0.04465117]
[1646441911323,12.62181,2601.8,2601.7,0.0012762]
[1646441911520,12.62181,2601.8,2601.3,0.03403908]
[1646441911521,12.62181,2601.8,2601.3,0.0289335]
[1646441911917,12.62181,2601.8,2601.6,0.00127623]
[1646441912520,11.66,2601.7,2601.6,0.00127623]
[1646441912919,11.66,2601.5,2601.3,0.0289335]
[1646441913118,12.6221452,2601.5,2601.3,0.0289335]
[1646441913756,12.79622765,2601.4,2601.3,0.0289335]
[1646441914158,13.75837765,2601.4,2601.3,0.0289335]
[1646441915157,14.75837765,2601.4,2601.3,0.0289335]
[1646441915757,0.00619841,2601.0,2600.9,0.03246415]
[1646441915958,12.85561676,2601.0,2600.9,0.03246415]
[1646441917358,0.00619841,2601.0,2600.9,0.03246415]
[1646441918415,12.56631725,2601.0,2600.9,0.03246415]
[1646441919813,11.66619841,2601.0,2600.9,0.03246415]
[1646441920015,0.00619841,2601.0,2600.9,0.03246415]
[1646441920438,0.00619841,2601.0,2600.9,0.41566415]
[1646441920814,0.00619841,2601.0,2600.9,3.91566415]
[1646441921016,0.00619841,2601.0,2600.9,4.95245088]
[1646441921276,0.00619841,2601.0,2600.9,3.11991918]
[1646441921470,0.00619841,2601.0,2600.9,4.08155918]
[1646441921672,0.00619841,2601.0,2600.9,2.41409088]
[1646441921870,0.00619841,2601.0,2600.9,2.06925088]
[1646441922072,0.00619841,2601.0,2600.9,1.1125004]
[1646441922874,0.00619841,2601.0,2600.9,0.07571367]
[1646441927710,0.00619841,2601.0,2600.9,0.03246415]
[1646441931466,11.66,2600.8,2600.2,0.02130279]
[1646441931764,0.98313042,2600.4,2600.2,0.02130279]
[1646441932360,0.97311042,2600.4,2600.2,0.02130279]
[1646441932612,12.63311042,2600.4,2600.2,0.02130279]
[1646441933308,13.59546042,2600.4,2600.2,0.02130279]
[1646441933508,1.93546042,2600.4,2600.2,0.02130279]
[1646441933709,0.97311042,2600.4,2600.2,0.02130279]
[1646441934515,0.96226,2600.6,2600.2,0.02130279]
[1646441934713,1.10668838,2601.0,2600.2,0.02130279]
[1646441934714,11.80439838,2601.0,2600.2,0.02130279]
[1646441934911,13.72876838,2601.0,2600.2,0.02130279]
[1646441935811,1.02539368,2600.8,2600.3,0.00156575]
[1646441936015,11.66,2600.9,2600.3,0.00301275]
[1646441936269,11.66,2600.9,2600.3,0.65810825]
[1646441936960,0.00619841,2601.0,2600.3,0.6565425]
[1646441937159,0.00619841,2601.0,2600.3,0.65955525]
[1646441937959,1.10271749,2600.8,2600.3,0.6579895]
[1646441938259,1.10271749,2600.8,2600.3,0.00301275]
[1646441938460,1.10271749,2600.8,2600.3,0.00156575]
[1646441938661,1.10271749,2600.8,2600.3,0.6580505]
[1646441938861,1.10271749,2600.8,2600.3,0.00156575]
[1646441939063,1.10271749,2600.8,2600.3,0.65805053]
[1646441939262,1.10271749,2600.8,2600.3,0.65648478]
[1646441939465,0.00619841,2601.0,2600.3,0.65805053]
[1646441939661,0.00619841,2601.0,2600.3,0.65949753]
[1646441940103,0.89441297,2600.9,2600.3,0.65949753]
[1646441940308,0.00619841,2601.0,2600.3,0.65793178]
[1646441940503,0.00619841,2601.0,2600.6,1.02607615]
[1646441940905,0.00619841,2601.0,2600.7,3.5]
[1646441941114,0.00619841,2601.0,2600.8,0.6574349]
[1646441941311,0.00619841,2601.0,2600.8,2.0037518]
[1646441941513,0.00619841,2601.0,2600.9,0.6574349]
[1646441942314,0.00619841,2601.0,2600.9,4.5406349]
[1646441942517,9.841e-05,2601.0,2600.9,4.5406349]
[1646441942714,0.00256174,2602.1,2601.3,0.3832]
[1646441942921,0.89519865,2602.1,2601.5,1.92261]
[1646441943117,0.89527097,2602.0,2601.3,0.001447]
[1646441943316,0.89527097,2601.9,2601.3,0.001447]
[1646441943514,0.89527097,2601.8,2601.3,0.001447]
[1646441943775,13.30848271,2602.1,2601.1,0.001447]
[1646441943776,0.89915346,2601.4,2601.1,0.001447]
[1646441943966,0.89915346,2601.4,2601.2,0.001447]
[1646441944167,0.89915346,2601.4,2601.0,0.65780175]
[1646441944368,0.89915346,2601.4,2600.6,1.0]
[1646441944579,0.84915346,2601.4,2600.7,0.65801721]
[1646441944769,0.84915346,2601.4,2600.8,0.65801721]
[1646441944969,0.84915346,2601.4,2600.9,0.65801721]
[1646441945173,0.84915346,2601.4,2600.8,1.15256]
[1646441945371,0.84915346,2601.4,2600.9,3.92616245]
[1646441945578,0.84915346,2601.4,2601.0,0.65796255]
[1646441946069,0.68664103,2602.1,2601.0,0.65796255]
[1646441946270,0.68664103,2602.1,2601.1,0.001447]
[1646441946271,0.89696188,2602.1,2601.1,0.001447]
[1646441946469,0.89696188,2602.1,2601.1,2.00423955]
[1646441946669,0.89450552,2602.1,2601.2,0.001447]
[1646441946871,0.89672005,2602.1,2601.2,0.001447]
[1646441947071,1.08776788,2601.6,2601.2,0.386117]
[1646441947269,0.00221453,2602.1,2601.2,0.38467]
[1646441947506,0.00221453,2602.1,2601.2,0.386117]
[1646441947711,0.89418071,2602.1,2601.2,0.386117]
[1646441948212,1.19140217,2601.9,2601.2,0.386117]
[1646441948407,0.89418071,2601.8,2601.3,1.9232197]
[1646441948611,0.89418071,2601.8,2601.2,0.386117]
[1646441948811,0.89418071,2601.8,2601.2,0.001447]
[1646441949011,0.89418071,2601.8,2601.0,0.001447]
[1646441949213,4.39418071,2601.8,2601.0,0.001447]
[1646441949413,11.66,2601.6,2600.8,0.001447]
[1646441949615,4.39418071,2601.5,2601.0,0.001447]
[1646441949815,2.0992672,2601.4,2600.7,0.001447]
[1646441950014,0.89418071,2601.3,2600.5,0.38477]
[1646441950216,0.89418071,2601.2,2600.6,0.65959491]
[1646441950414,0.89389666,2601.1,2600.7,0.001447]
[1646441950617,12.62191,2601.6,2600.7,0.65814791]
[1646441950819,0.89383034,2601.5,2600.7,0.001447]
[1646441951014,0.89383034,2601.5,2600.5,0.65959646]
[1646441951267,1.12239547,2601.0,2600.6,0.001447]
[1646441951460,1.12239547,2601.0,2600.5,0.65814946]
[1646441951958,1.12239547,2601.0,2600.5,1.04291946]
[1646441952158,0.62239547,2601.0,2600.6,1.62001886]
[1646441952358,0.62239547,2601.0,2600.7,0.65814946]
[1646441952558,0.62239547,2601.0,2600.8,0.65814946]
[1646441952762,0.62239547,2601.0,2600.9,0.65814946]
[1646441953062,0.89074052,2600.6,2600.4,1.001447]
[1646441953263,0.89074052,2600.6,2600.5,0.65869797]
[1646441953471,0.89074052,2600.6,2600.3,0.00128041]
[1646441953665,0.89074052,2600.6,2600.3,0.66004061]
[1646441953864,0.89074052,2600.6,2600.3,0.6587602]
[1646441954267,0.89074052,2600.6,2600.3,0.66004061]
[1646441955205,0.89074052,2600.6,2600.3,0.6587602]
[1646441955408,0.89074052,2600.6,2600.3,0.66003786]
[1646441955705,1.85300052,2600.6,2600.3,0.66003786]
[1646441956114,0.89420561,2600.5,2600.3,0.66003786]
[1646441956309,0.89420561,2600.5,2600.3,0.6587602]
[1646441956507,0.89420561,2600.5,2600.3,0.66003786]
[1646441956906,1.85300052,2600.6,2600.3,0.66003786]
[1646441957106,1.85300052,2600.6,2600.3,0.00127766]
[1646441957107,16.06903371,2600.5,2600.3,0.00127766]
[1646441957309,1.87142371,2600.4,2600.3,0.00127766]
[1646441957510,1.87142371,2600.4,2600.2,0.02130279]
[1646441957707,1.08294052,2600.6,2600.2,0.02130279]
[1646441957708,0.90903371,2600.3,2600.2,0.02130279]
[1646441957906,1.08294052,2600.6,2600.2,0.02130279]
[1646441958206,0.94771766,2600.5,2600.2,0.02130279]
[1646441958614,14.4197,2600.9,2600.3,0.60528572]
[1646441958866,2.37675844,2601.3,2600.3,0.60528572]
[1646441958867,0.94775464,2600.8,2600.3,0.60528572]
[1646441959071,1.81158467,2601.3,2600.4,0.001447]
[1646441959072,0.94775464,2600.7,2600.4,0.001447]
[1646441959268,12.53638467,2601.5,2600.3,0.60528572]
[1646441959470,0.94789746,2601.4,2600.4,0.001447]
[1646441959867,1.33109746,2601.4,2600.4,0.001447]
[1646441960068,1.21624909,2601.1,2600.5,1.16836735]
[1646441960268,1.21624909,2601.1,2600.6,1.56860492]
[1646441960269,0.94789746,2601.0,2600.6,1.56860492]
[1646441960468,0.94789746,2601.0,2600.6,0.9618722]
[1646441960869,0.94789746,2601.0,2600.7,0.60511077]
[1646441961068,0.1922,2601.5,2600.7,0.60511077]
[1646441961069,0.94789746,2600.9,2600.7,0.60511077]
[1646441961279,0.1922,2601.5,2600.7,0.60655777]
[1646441961474,0.94809232,2601.4,2600.7,0.60655777]
[1646441961871,0.88804339,2601.2,2600.7,0.60655777]
[1646441962068,0.94809232,2601.1,2600.7,0.60511077]
[1646441962505,0.94809232,2601.1,2600.7,0.98985077]
[1646441962707,4.42196467,2601.7,2600.8,0.60511077]
[1646441962906,0.94881779,2601.6,2600.8,0.60655777]
[1646441963507,1.17275103,2601.4,2600.9,0.95070099]
[1646441963715,0.94881779,2601.3,2600.9,0.95070099]
[1646441963914,0.94881779,2601.3,2600.8,0.001447]
[1646441964110,0.94881779,2601.3,2600.8,0.60509394]
[1646441964512,0.74159776,2600.7,2600.6,1.0]
[1646441964712,0.74159776,2600.7,2600.6,0.60520324]
[1646441965112,0.74159776,2600.7,2600.3,0.60668425]
[1646441965313,0.74159776,2600.7,2600.4,0.60520324]
[1646441965512,0.74159776,2600.7,2600.3,0.00148101]
[1646441965513,1.70382776,2600.7,2600.5,0.60520324]
[1646441965715,0.94824794,2600.6,2600.3,0.00148101]
[1646441965914,0.94824794,2600.6,2600.2,0.02130279]
[1646441965915,12.60824794,2600.6,2600.2,0.02130279]
[1646441966111,0.74159776,2600.7,2600.3,0.00123252]
[1646441966112,12.60824794,2600.5,2600.3,0.00123252]
[1646441966356,1.87084096,2600.4,2600.3,0.00123252]
[1646441967256,1.87084096,2600.4,2600.2,0.02130279]
[1646441967458,1.91068794,2600.3,2600.2,0.02130279]
[1646441970106,0.94824794,2600.3,2600.2,0.02130279]
[1646441971207,0.94824794,2600.3,2599.8,0.74229639]
[1646441971411,0.94824794,2600.3,2599.9,0.6056303]
[1646441971811,1.74159776,2600.7,2599.9,0.6056303]
[1646441972009,1.91050952,2600.6,2600.0,0.6056303]
[1646441972210,0.94821952,2600.5,2600.1,0.6056303]
[1646441972511,0.94821952,2600.5,2599.7,0.0401292]
[1646441972711,0.94821952,2600.5,2599.8,0.60555279]
[1646441973113,1.21374894,2600.3,2599.8,1.83402649]
[1646441973412,1.21374894,2600.3,2599.9,0.60555279]
[1646441974062,1.21374894,2600.3,2600.0,0.60555279]
[1646441974270,1.21374894,2600.3,2600.1,0.60555279]
[1646441974463,1.21374894,2600.3,2600.2,0.55555279]
[1646441974663,1.21374894,2600.3,2599.7,0.0401292]
[1646441974864,1.21374894,2600.3,2600.0,0.00123571]
[1646441975663,1.21374894,2600.3,2600.0,0.00123568]
[1646441976563,1.21374894,2600.3,2599.7,0.0401292]
[1646441976770,1.13446549,2599.9,2599.7,0.0401292]
[1646441977364,0.96234,2600.4,2599.7,0.0401292]
[1646441978012,0.96234,2600.4,2599.9,0.01002]
[1646441978214,0.96234,2600.4,2599.9,0.01130421]
[1646441978614,0.94095984,2600.3,2599.9,0.01130421]
[1646441978818,0.96243,2600.2,2599.9,0.01130421]
[1646441979219,0.96243,2600.2,2599.9,0.01002]
[1646441979423,0.96243,2600.2,2600.0,0.00128419]
[1646441979924,11.66,2599.9,2599.7,0.00143339]
[1646441980121,0.96243,2600.2,2599.7,0.00143339]
[1646441980122,13.57944379,2599.8,2599.7,0.00143339]
[1646441981358,13.52944379,2599.8,2599.7,0.00143339]
[1646441982259,17.02944379,2599.8,2599.7,0.00143339]
[1646441983461,17.02944379,2599.8,2599.7,3.339e-05]
[1646441983762,17.02944379,2599.8,2599.6,0.0193292]
[1646441983763,17.16,2599.7,2599.6,2.92e-05]
[1646441983962,19.27801,2599.7,2599.6,2.92e-05]
[1646441984162,21.57447153,2599.7,2599.6,2.92e-05]
[1646441984365,21.57447153,2599.7,2598.9,0.01572166]
[1646441984366,12.623,2599.3,2598.0,0.0438464]
[1646441984569,0.00379834,2598.4,2598.0,0.0438464]
[1646441984763,1.23626151,2598.4,2598.3,0.0511373]
[1646441985010,1.23626151,2598.4,2598.3,0.0011373]
[1646441985011,0.00379834,2598.4,2598.3,0.0011373]
[1646441986110,0.00379834,2598.4,2598.3,1.00810776]
[1646441988413,0.00379834,2598.4,2598.3,0.95810776]
[1646441990164,0.00379834,2598.4,2598.3,0.80810776]
[1646441994511,0.00379834,2598.4,2598.3,0.57690244]
[1646441994918,0.00379834,2598.4,2598.2,0.57690244]
[1646441995112,0.00379834,2598.4,2598.2,0.00130862]
[1646441995411,0.00379834,2598.4,2598.2,0.57809426]
[1646441995613,5.68548235,2598.3,2598.0,0.0438464]
[1646441996268,5.68548235,2598.3,2597.9,0.0290202]
[1646441996269,11.66,2598.2,2597.9,0.0290202]
[1646441996465,11.66,2598.0,2597.9,0.0290202]
[1646441996660,11.66,2598.0,2596.7,0.74191923]
[1646441996661,3.3,2597.6,2596.7,0.74191923]
[1646441996860,15.16,2597.5,2596.8,0.20376756]
[1646441997058,1.15970307,2597.0,2596.5,0.16968043]
[1646441997259,4.5,2597.4,2596.5,0.16968043]
[1646441997862,0.9635,2597.2,2596.5,0.16968043]
[1646441998064,0.9635,2597.2,2596.5,0.06968043]
[1646441998065,11.66,2597.0,2596.5,0.06968043]
[1646441998269,3.5,2596.9,2596.5,0.06968043]
[1646441998466,11.66,2596.8,2596.5,0.0529385]
[1646441998666,11.65372533,2596.8,2596.5,0.0529385]
[1646441998864,1.01045071,2596.8,2596.6,1.0]
[1646441999066,1.1925,2597.5,2596.6,1.0]
[1646441999268,1.0,2597.5,2596.5,0.0529385]
[1646441999468,0.1925,2597.4,2596.5,0.0529385]
[1646441999668,1.0,2597.5,2596.5,0.0529385]
[1646442000115,1.0,2597.5,2596.1,0.0164685]
[1646442000116,1.0,2597.5,2595.5,2.16727993]
[1646442000312,2.6684,2597.7,2596.8,0.963249]
[1646442000313,0.16133476,2597.3,2596.8,0.963249]
[1646442000509,0.16133476,2597.3,2596.5,0.00140017]
[1646442000912,3.3,2597.2,2596.4,5.62332434]
[1646442001113,3.3,2597.2,2596.9,0.00145473]
[1646442001915,0.16133476,2597.1,2596.9,0.00145473]
[1646442002114,3.3,2597.2,2596.4,1.0]
[1646442002314,0.11133476,2596.9,2596.5,0.02764396]
[1646442002513,1.15603,2597.3,2596.5,0.02764396]
[1646442002720,0.11133476,2597.3,2596.5,0.02764396]
[1646442002915,0.11133476,2596.9,2596.5,0.02764396]
[1646442003315,0.11133476,2596.9,2596.4,0.00836575]
[1646442004171,1.14986197,2596.6,2596.4,0.00836575]
[1646442004368,1.14986197,2596.6,2596.0,1.9269965]
[1646442004369,2.36614386,2596.6,2596.0,1.9269965]
[1646442004571,0.96358,2597.1,2596.9,0.34267372]
[1646442004769,0.95765855,2597.0,2596.9,0.34267372]
[1646442005573,0.1925,2597.3,2596.9,0.34267372]
[1646442005773,1.14986197,2597.0,2596.9,0.34267372]
[1646442005976,2.8156,2597.7,2596.9,0.34406935]
[1646442006175,1.1925,2598.0,2596.9,0.72799372]
[1646442006376,1.0,2598.0,2597.0,2.88919]
[1646442006576,0.1923,2598.1,2597.3,0.3832]
[1646442006777,1.00379834,2598.4,2597.3,0.00139563]
[1646442006778,1.21971177,2598.0,2597.3,0.00139563]
[1646442006976,1.21971177,2598.0,2597.0,0.00139563]
[1646442007178,1.14986197,2597.4,2597.0,0.0099758]
[1646442007520,0.1923,2597.9,2597.0,0.00858017]
[1646442007711,0.1923,2597.9,2597.1,1.30432632]
[1646442007919,0.1923,2597.9,2597.1,1.30572195]
[1646442008311,0.1923,2597.9,2597.5,0.93373049]
[1646442008511,0.1923,2598.3,2597.2,0.96457393]
[1646442008715,1.14986197,2597.6,2597.3,0.00139563]
[1646442008916,1.14986197,2597.6,2597.0,0.00139563]
[1646442009118,1.14986197,2597.6,2597.0,0.38670563]
[1646442009119,1.38631499,2597.6,2597.0,0.38670563]
[1646442009318,0.23645302,2597.2,2597.0,0.38670563]
[1646442009520,0.23645302,2597.2,2597.0,0.38531]
[1646442009720,0.23645302,2597.2,2597.0,0.9632592]
[1646442010222,0.23645302,2597.2,2597.0,1.3464592]
[1646442010431,1.14986197,2597.1,2597.0,1.7317492]
[1646442010620,0.23645302,2597.2,2597.1,4.8832]
[1646442010922,0.09900387,2597.2,2597.1,6.75351399]
[1646442014067,0.00379834,2598.4,2597.3,0.3832]
[1646442014368,0.00379834,2598.4,2597.7,0.9627986]
[1646442014369,0.1923,2598.3,2597.7,0.9627986]
[1646442014569,0.00379834,2598.4,2597.6,3.2717171]
[1646442014766,0.00379834,2598.4,2597.6,4.27311273]
[1646442015032,0.00379834,2598.4,2598.2,1.20181655]
[1646442015438,0.00379834,2598.4,2598.2,3.89555305]
[1646442015833,0.00379834,2598.4,2598.2,4.89555305]
[1646442016536,0.00379834,2598.4,2598.2,4.51235305]
[1646442016835,0.00379834,2598.4,2598.2,7.51235305]
[1646442017037,0.00252492,2598.9,2598.6,2.3097349]
[1646442017237,0.00252492,2598.9,2598.7,0.96242]
[1646442017738,1.42329089,2599.9,2598.7,0.96242]
[1646442017936,1.04009089,2599.8,2598.8,3.5]
[1646442018141,3.6923,2600.2,2598.9,0.96222]
[1646442018335,1.1939149,2600.1,2599.0,0.96221]
[1646442018534,3.6923,2600.0,2599.0,0.96221]
[1646442018759,1.04110223,2599.9,2599.0,0.96221]
[1646442018963,1.01622277,2599.4,2599.0,0.96221]
[1646442019162,1.01622277,2599.4,2599.0,2.3094731]
[1646442019362,0.23645302,2599.2,2598.9,2.6943461]
[1646442019564,0.23645302,2599.2,2597.8,3.86210184]
[1646442019565,0.23645302,2599.2,2598.0,1.8238]
[1646442019769,12.0432,2599.0,2598.0,1.8238]
[1646442019966,12.0432,2599.0,2597.8,2.8868]
[1646442020167,0.89387527,2598.1,2597.9,0.00139563]
[1646442020365,0.89387527,2598.1,2597.6,1.92714425]
[1646442020670,3.8832,2598.9,2597.6,3.08068425]
[1646442020671,0.96304,2598.8,2597.6,3.08068425]
[1646442020868,1.9224,2599.1,2597.7,0.00139563]
[1646442020869,3.8832,2599.0,2597.7,0.00139563]
[1646442021068,3.8832,2599.0,2597.9,0.38516]
[1646442021069,1.04109173,2598.9,2597.9,0.38516]
[1646442021269,1.04109173,2598.9,2598.0,0.00139563]
[1646442021465,1.04109173,2598.9,2598.0,0.96423983]
[1646442021664,1.04109173,2598.9,2598.0,0.9628442]
[1646442021665,0.00261488,2598.9,2598.0,0.9628442]
[1646442021865,0.00261488,2598.9,2598.0,0.96423983]
[1646442022165,1.04492624,2598.9,2598.1,0.38514]
[1646442022366,0.00261488,2598.9,2598.2,0.9627573]
[1646442022608,0.153944,2599.0,2598.2,0.9627573]
[1646442022809,0.153944,2599.0,2598.0,2.31016273]
[1646442023013,1.1005973,2598.8,2598.2,0.96269]
[1646442023216,1.1005973,2598.8,2598.0,1.92696273]
[1646442023613,0.00261496,2598.9,2598.3,1.19989543]
[1646442023818,0.23645302,2599.2,2598.4,0.962726]
[1646442024015,0.00254864,2598.9,2598.4,1.347826]
[1646442024215,0.00254864,2598.9,2598.4,0.962726]
[1646442024819,0.00254864,2598.9,2598.8,0.87653918]
[1646442024820,0.00091093,2598.9,2598.8,0.87653918]
[1646442025019,1.2059212,2599.5,2598.8,0.87653918]
[1646442025318,0.0008,2599.5,2599.0,0.96239]
[1646442025918,0.0008,2599.5,2599.0,1.9247509]
[1646442026118,0.0008,2599.5,2599.2,1.9243]
[1646442026364,0.0008,2599.5,2599.4,0.3832]
[1646442026565,0.0008,2599.5,2599.4,3.8832]
[1646442026762,0.0008,2599.5,2599.4,5.8075]
[1646442026966,0.0008,2599.5,2599.4,6.4243]
[1646442027166,0.0008,2599.5,2599.4,2.9243]
[1646442027567,0.0008,2599.5,2599.4,5.8075]
[1646442027767,0.0008,2599.5,2599.4,6.8075]
[1646442029769,0.23725302,2599.5,2599.4,6.8075]
[1646442030015,0.1923,2600.6,2599.6,0.3832]
[1646442030211,1.04506656,2600.5,2600.0,0.38479]
[1646442030411,0.69360293,2601.2,2600.1,4.84518]
[1646442030611,0.1922,2601.1,2600.1,4.84518]
[1646442030811,0.1922,2601.2,2600.6,0.87875131]
[1646442031021,1.07702022,2601.3,2600.5,1.9233]
[1646442031416,1.07702022,2601.3,2600.6,0.96173]
[1646442031617,1.07702022,2601.3,2600.5,3.2695226]
[1646442031818,3.5,2601.2,2600.4,1.0]
[1646442032018,3.5,2601.2,2599.7,2.8433]
[1646442032019,1.99782291,2600.6,2600.3,1.0]
[1646442032219,0.9542533,2600.6,2599.9,0.3832]
[1646442032418,0.9542533,2600.6,2599.9,0.96209]
[1646442032716,0.9542533,2600.6,2600.0,0.9621071]
[1646442032916,1.0436606,2600.5,2600.0,1.7317371]
[1646442033119,0.9542533,2600.6,2600.0,1.7317371]
[1646442033523,1.19639556,2600.2,2600.0,1.7317371]
[1646442034166,1.19639556,2600.2,2600.0,0.76963]
[1646442034968,1.19895645,2600.2,2600.0,0.76963]
[1646442035866,1.19895645,2600.2,2599.9,1.924097]
[1646442035867,1.19639556,2600.2,2599.9,1.924097]
[1646442036073,1.19639556,2600.2,2599.8,0.76971]
[1646442036074,1.19895645,2600.2,2599.8,0.76971]
[1646442036269,1.19895645,2600.2,2599.6,0.76978]
[1646442036472,1.02522392,2600.1,2599.0,1.7829]
[1646442036670,4.52522392,2600.1,2598.9,2.15472]
[1646442036970,1.57959556,2600.2,2598.9,2.15472]
[1646442037171,4.52485578,2600.1,2598.9,1.15472]
[1646442037370,0.9478275,2599.2,2599.0,0.38497]
[1646442037615,0.9478275,2599.2,2599.0,1.3473717]
[1646442037812,0.00256097,2599.7,2599.0,1.3473717]
[1646442037813,0.00256097,2599.7,2599.0,0.38497]
[1646442038013,0.00256097,2599.7,2599.0,2.30961]
[1646442038212,0.3832,2600.2,2599.2,0.96237]
[1646442038412,1.02476743,2600.1,2599.4,0.38495]
[1646442038619,0.3832,2600.2,2599.4,0.38495]
[1646442038816,1.20044339,2599.6,2599.4,0.38495]
[1646442039216,1.20044339,2599.6,2599.1,0.76989]
[1646442040015,1.20300418,2599.6,2599.1,0.76989]
[1646442040617,1.20044339,2599.6,2599.1,1.7323367]
[1646442040916,0.00247734,2599.5,2599.1,1.7323367]
[1646442041773,1.20044339,2599.6,2599.1,1.7323367]
[1646442042172,0.00247739,2599.4,2599.1,1.7323367]
[1646442043073,1.20044339,2599.6,2599.1,1.7323367]
[1646442043273,0.00247739,2599.4,2599.2,1.9246608]
[1646442044272,1.14836576,2600.2,2599.2,1.9246608]
[1646442044472,1.40863764,2600.1,2599.4,0.38496]
[1646442044673,0.3832,2600.1,2599.4,0.38496]
[1646442044873,0.3832,2600.1,2599.2,1.9246608]
[1646442044874,0.12894033,2599.3,2599.2,2.9246608]
[1646442045510,0.12894033,2599.3,2599.2,1.9246608]
[1646442045709,0.12894033,2599.3,2599.2,4.2701908]
[1646442045710,4.033e-05,2599.3,2599.2,4.2701908]
[1646442045913,4.033e-05,2599.3,2599.2,3.2701908]
[1646442046109,4.033e-05,2599.3,2599.2,4.2701908]
[1646442047914,4.033e-05,2599.3,2599.2,7.7701908]
[1646442048415,6.534e-05,2599.4,2599.3,16.5432]
[1646442048616,0.74159776,2600.7,2599.5,12.0432]
[1646442048883,0.74159776,2600.7,2600.1,0.3832]
[1646442049075,0.74159776,2600.7,2600.3,1.49916938]
[1646442049280,0.3847,2601.3,2600.7,0.3832]
[1646442049574,0.69360293,2601.9,2600.9,1.92286]
[1646442049773,1.00553259,2601.8,2601.4,0.9614943]
[1646442049972,1.00553259,2601.8,2601.4,1.9229943]
[1646442050374,1.00553259,2601.7,2601.4,1.9229943]
[1646442050576,1.00553259,2601.6,2601.4,2.8844943]
[1646442050773,0.192,2602.1,2601.4,2.3461]
[1646442050973,1.00578469,2602.0,2601.6,0.96135]
[1646442051175,1.00578469,2601.9,2601.6,0.3832]
[1646442051382,0.3847,2602.8,2601.7,1.11432606]
[1646442051383,0.87262609,2602.3,2601.7,1.11432606]
[1646442051574,0.87262609,2602.3,2601.5,5.4613746]
[1646442051575,0.00220206,2601.9,2601.5,4.5]
[1646442051772,0.00220206,2601.9,2601.5,1.0]
[1646442051973,0.00220206,2601.9,2601.7,0.38451]
[1646442052173,0.00220206,2601.9,2600.8,1.9234307]
[1646442052375,0.38540206,2601.9,2600.9,0.9617]
[1646442052620,0.95015398,2601.2,2600.9,0.9617]
[1646442053019,0.00264525,2601.6,2600.9,6.19118]